fUSD/lending_fUSD_20241020
["ID","MTS","AMOUNT","RATE_DAILY","PERIOD"]
[340511993,1729398641528,-602.704261,0.00024865,7]
[340511994,1729398641537,-602.704261,0.00024865,7]
[340511995,1729398641546,-6051.10901081,0.00024866,2]
[340511996,1729398641555,-1916.74957462,0.00024866,2]
[340511997,1729398641564,-258.14490271,0.00024866,2]
[340511998,1729398641573,-500.0,0.00024873,2]
[340511999,1729398641582,-151.41,0.00024877,30]
[340512000,1729398641591,-276.69391786,0.00024877,2]
[340512001,1729398641600,-151.864204,0.0002488,7]
[340512002,1729398641609,-192.743163,0.0002488,7]
[340512003,1729398641619,-5800.0,0.00024883,2]
[340512004,1729398641628,-400.0,0.00024889,2]
[340512005,1729398641637,-183.317206,0.0002489,7]
[340512006,1729398641646,-183.317206,0.0002489,7]
[340512007,1729398641655,-5800.0,0.00024892,2]
[340512008,1729398641664,-2000.0,0.000249,2]
[340512009,1729398641673,-2000.0,0.000249,2]
[340512010,1729398641682,-2000.0,0.000249,2]
[340512011,1729398641691,-2000.0,0.000249,2]
[340512012,1729398641700,-2000.0,0.000249,2]
[340512013,1729398641709,-2000.0,0.000249,2]
[340512014,1729398641718,-2000.0,0.000249,2]
[340512015,1729398641728,-2000.0,0.000249,2]
[340512016,1729398641737,-2000.0,0.000249,2]
[340512017,1729398641745,-2000.0,0.000249,2]
[340512018,1729398641754,-2000.0,0.000249,2]
[340512019,1729398641763,-2000.0,0.000249,2]
[340512020,1729398641772,-2000.0,0.000249,2]
[340512021,1729398641793,-1200.95401457,0.000249,2]
[340512022,1729398641808,-8500.0,0.000249,2]
[340512023,1729398641827,-151.0,0.000249,7]
[340512024,1729398641845,-276.69391786,0.000249,2]
[340512025,1729398641862,-5800.0,0.000249,2]
[340512026,1729398641879,-8500.0,0.000249,2]
[340512027,1729398641895,-183.317206,0.000249,7]
[340512028,1729398641912,-183.317206,0.000249,7]
[340512029,1729398641928,-602.704261,0.000249,7]
[340512030,1729398641948,-602.704261,0.000249,7]
[340512031,1729398641962,-1264.35016233,0.000249,2]
[340512032,1729398641980,-6051.10901081,0.000249,2]
[340512033,1729398641996,-173.96174468,0.000249,2]
[340512034,1729398642014,-1916.74957462,0.000249,2]
[340512035,1729398642027,-258.14490271,0.000249,2]
[340512036,1729398642041,-250.0,0.000249,2]
[340512037,1729398642058,-298.6,0.000249,2]
[340512038,1729398642075,-4947.18,0.00024909,2]
[340512039,1729398642090,-924.0,0.0002491,2]
[340512040,1729398642105,-151.0,0.0002491,7]
[340512041,1729398642119,-151.0,0.0002491,7]
[340512042,1729398642133,-280.806974,0.0002491,7]
[340512043,1729398642148,-151.0,0.0002491,7]
[340512044,1729398642162,-183.317206,0.0002491,7]
[340512045,1729398642177,-183.317206,0.0002491,7]
[340512046,1729398642190,-151.0,0.00024911,7]
[340512047,1729398642204,-262.436682,0.00024911,7]
[340512048,1729398642218,-424.959873,0.00024911,7]
[340512049,1729398642232,-424.959873,0.00024911,7]
[340512050,1729398642246,-183.317206,0.00024919,7]
[340512051,1729398642261,-183.317206,0.00024919,7]
[340512052,1729398642275,-38066.40161832,0.00024919,4]
[340512053,1729398642294,-1420.89381704,0.00024919,4]
[340512054,1729398642311,-540.15952284,0.00024919,4]
[340512055,1729398642335,-355.72425126,0.00024919,4]
[340512056,1729398642353,-4883.87071231,0.00024919,4]
[340512057,1729398642372,-67648.00000003,0.00024919,4]
[340512058,1729398642391,-21656.56147187,0.00024919,4]
[340512059,1729398642415,-250.72530513,0.00024919,4]
[340512060,1729398642434,-3602.21195516,0.00024919,4]
[340512061,1729398642451,-486.06072121,0.00024919,4]
[340512062,1729398642471,-2028.11298634,0.00024919,4]
[340512064,1729398643088,-684.83962654,0.00024919,4]
[340512065,1729398643101,-444.24779552,0.00024919,4]
[340512066,1729398643112,-463.3999995,0.00024919,4]
[340512067,1729398643124,-1934.53105243,0.00024919,4]
[340512068,1729398643136,-259.98060429,0.00024919,4]
[340512069,1729398643147,-551.53133505,0.00024919,4]
[340512070,1729398643158,-1000.0,0.00024919,4]
[340512071,1729398643186,-598.21628896,0.00024919,4]
[340512072,1729398643201,-305.67881732,0.00024919,4]
[340512073,1729398643212,-7764.0017081,0.00024919,4]
[340512074,1729398643224,-529.685291,0.00024919,4]
[340512075,1729398643235,-2285.82171714,0.00024919,4]
[340512076,1729398643247,-1240.6631406,0.00024919,4]
[340512077,1729398643272,-1886.64857172,0.00024919,4]
[340512078,1729398643283,-373.5132,0.00024919,4]
[340512079,1729398643294,-684.93719709,0.00024919,4]
[340512080,1729398643306,-2016.6,0.00024919,4]
[340512081,1729398643318,-2467.1499995,0.00024919,4]
[340512082,1729398643329,-7440.45079688,0.00024919,4]
[340512083,1729398643341,-754.9399989,0.00024919,4]
[340512084,1729398643352,-2558.2578458,0.00024919,4]
[340512085,1729398643368,-2487.72616371,0.00024919,4]
[340512086,1729398643378,-8504.94319813,0.00024919,2]
[340512087,1729398643390,-3265.01060924,0.00024919,2]
[340512088,1729398643401,-361.855006,0.00024919,2]
[340512089,1729398643412,-132.9894365,0.00024919,2]
[340512090,1729398643421,-151.0,0.0002492,7]
[340512091,1729398643431,-602.704261,0.0002492,7]
[340512092,1729398643442,-602.704263,0.0002492,7]
[340512093,1729398643451,-151.0,0.00024921,7]
[340512094,1729398643461,-151.0,0.00024921,7]
[340512095,1729398643470,-424.959873,0.00024921,7]
[340512096,1729398643480,-424.959873,0.00024921,7]
[340512097,1729398643489,-151.0,0.00024921,7]
[340512098,1729398643498,-151.0,0.00024921,7]
[340512099,1729398643507,-183.317206,0.00024921,7]
[340512100,1729398643517,-183.317206,0.00024921,7]
[340512101,1729398643526,-1308.17918368,0.00024929,2]
[340512102,1729398643535,-4947.18,0.00024929,2]
[340512103,1729398643545,-151.0,0.0002493,7]
[340512104,1729398643554,-152.142446,0.0002493,7]
[340512105,1729398643563,-183.317206,0.0002493,7]
[340512106,1729398643573,-183.317196,0.0002493,7]
[340512107,1729398643582,-4947.18,0.0002493,2]
[340512108,1729398643592,-4947.18,0.0002493,2]
[340512109,1729398643601,-4947.18,0.0002493,2]
[340512110,1729398643611,-4947.18,0.0002493,2]
[340512111,1729398643622,-4947.18,0.0002493,2]
[340512112,1729398643633,-4947.18,0.0002493,2]
[340512113,1729398643644,-4947.18,0.0002493,2]
[340512114,1729398643654,-4947.18,0.0002493,2]
[340512115,1729398643665,-4947.18,0.0002493,2]
[340512116,1729398643676,-4947.18,0.0002493,2]
[340512117,1729398643686,-4947.18,0.0002493,2]
[340512118,1729398643695,-4947.18,0.0002493,2]
[340512119,1729398643704,-4947.18,0.0002493,2]
[340512120,1729398643714,-375.0,0.0002493,2]
[340512121,1729398643724,-150.0,0.0002493,2]
[340512122,1729398643733,-150.69655203,0.0002493,2]
[340512123,1729398643742,-506.0,0.00024931,2]
[340512124,1729398643751,-549.39429603,0.00024931,2]
[340512125,1729398643760,-500.0,0.00024931,2]
[340512126,1729398643769,-527.49924881,0.00024931,2]
[340512127,1729398643778,-670.465034,0.00024931,2]
[340512128,1729398643788,-151.0,0.00024931,7]
[340512129,1729398643797,-152.613675,0.00024931,7]
[340512130,1729398643806,-504.89345343,0.00024931,2]
[340512131,1729398643815,-248.852445,0.00024931,2]
[340512132,1729398643824,-154.112122,0.00024931,7]
[340512133,1729398643833,-205.383607,0.00024931,2]
[340512134,1729398643842,-151.0,0.00024931,7]
[340512135,1729398643852,-151.0,0.00024931,7]
[340512136,1729398643861,-151.0,0.00024931,7]
[340512137,1729398643871,-151.0,0.00024931,7]
[340512138,1729398643881,-223.0,0.00024931,7]
[340512139,1729398643890,-424.959873,0.00024931,7]
[340512140,1729398643899,-424.959873,0.00024931,7]
[340512141,1729398643909,-424.959873,0.00024931,7]
[340512142,1729398643919,-424.959873,0.00024931,7]
[340512143,1729398643929,-424.959873,0.00024931,7]
[340512144,1729398643939,-424.959873,0.00024931,7]
[340512145,1729398643948,-424.959873,0.00024931,7]
[340512146,1729398643958,-424.959873,0.00024931,7]
[340512147,1729398643968,-424.959873,0.00024931,7]
[340512148,1729398643977,-424.959873,0.00024931,7]
[340512149,1729398643987,-424.959873,0.00024931,7]
[340512150,1729398643996,-424.959873,0.00024931,7]
[340512151,1729398644006,-424.959873,0.00024931,7]
[340512152,1729398644015,-424.959876,0.00024931,7]
[340512153,1729398644025,-151.0,0.00024931,7]
[340512154,1729398644035,-151.0,0.00024931,7]
[340512155,1729398644045,-151.0,0.00024931,7]
[340512156,1729398644054,-151.0,0.00024931,7]
[340512157,1729398644064,-151.0,0.00024931,7]
[340512158,1729398644074,-151.0,0.00024931,7]
[340512159,1729398644084,-151.0,0.00024931,7]
[340512160,1729398644093,-151.0,0.00024931,7]
[340512161,1729398644102,-151.0,0.00024931,7]
[340512162,1729398644111,-231.32674,0.00024931,7]
[340512163,1729398644120,-500.0,0.00024931,2]
[340512164,1729398644130,-500.0,0.00024931,2]
[340512165,1729398644139,-500.0,0.00024931,2]
[340512166,1729398644148,-516.41420667,0.00024931,2]
[340512167,1729398644158,-145.71341954,0.00024931,2]
[340512168,1729398644190,-354.28658046,0.00024931,2]
[340512169,1729398644199,-189.79030305,0.00024931,2]
[340512170,1729398644212,-307.33889573,0.00024931,2]
[340512171,1729398644223,-2.87080122,0.00024931,2]
[340512172,1729398644232,-500.0,0.00024931,2]
[340512173,1729398644241,-464.62251967,0.00024931,2]
[340512174,1729398644255,-53.03777019,0.00024931,2]
[340512175,1729398644265,-436.14519116,0.00024931,2]
[340512176,1729398644278,-63.85480884,0.00024931,2]
[340512177,1729398644288,-298.91004319,0.00024931,2]
[340512178,1729398644301,-201.08995681,0.00024931,2]
[340512179,1729398644312,-500.0,0.00024931,2]
[340512180,1729398644322,-500.0,0.00024931,2]
[340512181,1729398644333,-500.0,0.00024931,2]
[340512182,1729398644343,-500.0,0.00024931,2]
[340512183,1729398644352,-500.0,0.00024931,2]
[340512184,1729398644362,-500.0,0.00024931,2]
[340512185,1729398644372,-506.09434434,0.00024931,2]
[340512186,1729398644382,-500.0,0.00024931,2]
[340512187,1729398644391,-500.0,0.00024931,2]
[340512188,1729398644401,-542.18564573,0.00024931,2]
[340512189,1729398644412,-500.0,0.00024931,2]
[340512190,1729398644422,-500.0,0.00024931,2]
[340512191,1729398644433,-521.24780906,0.00024931,2]
[340512192,1729398644443,-500.0,0.00024931,2]
[340512193,1729398644454,-500.0,0.00024931,2]
[340512194,1729398644464,-513.3218016,0.00024931,2]
[340512195,1729398644585,-500.0,0.00024931,2]
[340512196,1729398644595,-500.0,0.00024931,2]
[340512197,1729398644605,-511.74906762,0.00024931,2]
[340512198,1729398644615,-500.0,0.00024931,2]
[340512199,1729398644625,-500.0,0.00024931,2]
[340512200,1729398644635,-562.01265284,0.00024931,2]
[340512201,1729398644644,-500.0,0.00024931,2]
[340512202,1729398644654,-500.0,0.00024931,2]
[340512203,1729398644664,-500.0,0.00024931,2]
[340512204,1729398644674,-500.0,0.00024931,2]
[340512205,1729398644684,-500.0,0.00024931,2]
[340512206,1729398644694,-500.0,0.00024931,2]
[340512207,1729398644703,-549.31425662,0.00024931,2]
[340512208,1729398644714,-500.0,0.00024931,2]
[340512209,1729398644724,-500.0,0.00024931,2]
[340512210,1729398644734,-500.0,0.00024931,2]
[340512211,1729398644744,-500.0,0.00024931,2]
[340512212,1729398644754,-108.40337062,0.00024931,2]
[340512213,1729398644785,-391.59662938,0.00024931,2]
[340512214,1729398644796,-500.0,0.00024931,2]
[340512215,1729398644806,-500.0,0.00024931,2]
[340512216,1729398644817,-276.4263417,0.00024931,2]
[340512217,1729398644831,-223.5736583,0.00024931,2]
[340512218,1729398644840,-519.1523407,0.00024931,2]
[340512219,1729398644850,-250.40136141,0.00024931,2]
[340512220,1729398644863,-249.59863859,0.00024931,2]
[340512221,1729398644873,-164.41825032,0.00024931,2]
[340512222,1729398644883,-500.0,0.00024931,2]
[340512223,1729398644893,-500.0,0.00024931,2]
[340512224,1729398644904,-500.0,0.00024931,2]
[340512225,1729398644914,-539.35731137,0.00024931,2]
[340512226,1729398644923,-500.0,0.00024931,2]
[340512227,1729398644933,-500.0,0.00024931,2]
[340512228,1729398644942,-500.0,0.00024931,2]
[340512229,1729398644952,-520.85777616,0.00024931,2]
[340512230,1729398644962,-293.00367904,0.00024931,2]
[340512231,1729398644972,-500.0,0.00024931,2]
[340512232,1729398644982,-500.0,0.00024931,2]
[340512233,1729398644991,-500.0,0.00024931,2]
[340512234,1729398645001,-491.76508151,0.00024931,2]
[340512235,1729398645010,-500.0,0.00024931,2]
[340512236,1729398645022,-500.0,0.00024931,2]
[340512237,1729398645032,-500.0,0.00024931,2]
[340512238,1729398645042,-500.0,0.00024931,2]
[340512239,1729398645052,-172.96411839,0.00024931,2]
[340512240,1729398645068,-327.03588161,0.00024931,2]
[340512241,1729398645078,-43.94806863,0.00024931,2]
[340512242,1729398645090,-569.79912594,0.00024931,2]
[340512243,1729398645099,-168.68087406,0.00024931,2]
[340512244,1729398645111,-311.7686698,0.00024931,2]
[340512245,1729398645123,-19.55045614,0.00024931,2]
[340512246,1729398645133,-465.0180081,0.00024931,2]
[340512247,1729398645150,-34.9819919,0.00024931,2]
[340512248,1729398645160,-359.17525573,0.00024931,2]
[340512249,1729398645170,-500.0,0.00024931,2]
[340512250,1729398645183,-163.12073654,0.00024931,2]
[340512251,1729398645193,-10.32677823,0.00024931,2]
[340512252,1729398645206,-455.24917089,0.00024931,2]
[340512253,1729398645218,-34.42405088,0.00024931,2]
[340512254,1729398645228,-500.0,0.00024931,2]
[340512255,1729398645239,-500.0,0.00024931,2]
[340512256,1729398645249,-67.9738016,0.00024931,2]
[340512257,1729398645263,-448.33205026,0.00024931,2]
[340512258,1729398645273,-500.0,0.00024931,2]
[340512259,1729398645283,-500.0,0.00024931,2]
[340512260,1729398645293,-500.0,0.00024931,2]
[340512261,1729398645302,-500.0,0.00024931,2]
[340512262,1729398645312,-500.0,0.00024931,2]
[340512263,1729398645321,-500.0,0.00024931,2]
[340512264,1729398645331,-500.0,0.00024931,2]
[340512265,1729398645340,-500.0,0.00024931,2]
[340512266,1729398645350,-500.0,0.00024931,2]
[340512267,1729398645360,-500.0,0.00024931,2]
[340512268,1729398645370,-539.06058235,0.00024931,2]
[340512269,1729398645379,-500.0,0.00024931,2]
[340512270,1729398645389,-509.1323055,0.00024931,2]
[340512271,1729398645399,-500.0,0.00024931,2]
[340512272,1729398645408,-500.0,0.00024931,2]
[340512273,1729398645418,-500.0,0.00024931,2]
[340512274,1729398645428,-500.0,0.00024931,2]
[340512275,1729398645438,-518.47821284,0.00024931,2]
[340512276,1729398645448,-500.0,0.00024931,2]
[340512277,1729398645458,-522.32211367,0.00024931,2]
[340512278,1729398645467,-507.95949007,0.00024931,2]
[340512279,1729398645477,-221.93388528,0.00024931,2]
[340512280,1729398645487,-505.71691368,0.00024931,2]
[340512281,1729398645496,-500.0,0.00024931,2]
[340512282,1729398645505,-500.0,0.00024931,2]
[340512283,1729398645515,-329.62708298,0.00024931,2]
[340512284,1729398645538,-274.31934958,0.00024931,2]
[340512285,1729398645548,-500.0,0.00024931,2]
[340512286,1729398645558,-508.29076281,0.00024931,2]
[340512287,1729398645567,-500.0,0.00024931,2]
[340512288,1729398645576,-500.0,0.00024931,2]
[340512289,1729398645586,-508.92065305,0.00024931,2]
[340512290,1729398645596,-500.57745974,0.00024931,2]
[340512291,1729398645606,-500.0,0.00024931,2]
[340512292,1729398645615,-500.0,0.00024931,2]
[340512293,1729398645624,-505.19269601,0.00024931,2]
[340512294,1729398645635,-500.0,0.00024931,2]
[340512295,1729398645645,-276.58140862,0.00024931,2]
[340512296,1729398645655,-500.0,0.00024931,2]
[340512297,1729398645664,-500.0,0.00024931,2]
[340512298,1729398645678,-500.0,0.00024931,2]
[340512299,1729398645687,-500.0,0.00024931,2]
[340512300,1729398645696,-500.0,0.00024931,2]
[340512301,1729398645706,-500.0,0.00024931,2]
[340512302,1729398645715,-317.12045962,0.00024931,2]
[340512303,1729398646116,-1088.825,0.00015771,2]
[340512304,1729398646128,-153.0,0.00023811,2]
[340512305,1729398646138,-3609.89828235,0.00024698,2]
[340512306,1729398646149,-276.44066657,0.000248,2]
[340512307,1729398646158,-207.82548575,0.00024931,2]
[340512308,1729398646167,-502.81830527,0.00024931,2]
[340512309,1729398646177,-514.48898132,0.00024931,2]
[340512310,1729398646186,-500.0,0.00024931,2]
[340512311,1729398646195,-500.0,0.00024931,2]
[340512312,1729398646205,-500.0,0.00024931,2]
[340512313,1729398646214,-500.0,0.00024931,2]
[340512314,1729398646223,-500.0,0.00024931,2]
[340512315,1729398646232,-500.0,0.00024931,2]
[340512316,1729398646241,-159.90003528,0.00024931,2]
[340512317,1729398646250,-500.0,0.00024931,2]
[340512318,1729398646259,-261.72073088,0.00024931,2]
[340512319,1729398646363,-507.32108923,0.00024931,2]
[340512320,1729398646373,-500.0,0.00024931,2]
[340512321,1729398646382,-508.33823632,0.00024931,2]
[340512322,1729398646391,-551.84865713,0.00024931,2]
[340512323,1729398646401,-500.0,0.00024931,2]
[340512324,1729398646410,-500.0,0.00024931,2]
[340512325,1729398646419,-530.64508878,0.00024931,2]
[340512326,1729398646428,-500.0,0.00024931,2]
[340512327,1729398646438,-500.0,0.00024931,2]
[340512328,1729398646447,-222.50347249,0.00024931,2]
[340512329,1729398646456,-500.0,0.00024931,2]
[340512330,1729398646465,-500.0,0.00024931,2]
[340512331,1729398646474,-500.0,0.00024931,2]
[340512332,1729398646483,-232.38721132,0.00024931,2]
[340512333,1729398646492,-500.0,0.00024931,2]
[340512334,1729398646501,-508.24595131,0.00024931,2]
[340512335,1729398646510,-500.0,0.00024931,2]
[340512336,1729398646519,-500.0,0.00024931,2]
[340512337,1729398646528,-500.0,0.00024931,2]
[340512338,1729398646539,-426.3691022,0.00024931,2]
[340512339,1729398646549,-500.0,0.00024931,2]
[340512340,1729398646562,-500.0,0.00024931,2]
[340512341,1729398646572,-404.69688607,0.00024931,2]
[340512342,1729398646582,-500.0,0.00024931,2]
[340512343,1729398646591,-500.0,0.00024931,2]
[340512344,1729398646599,-500.0,0.00024931,2]
[340512345,1729398646608,-500.0,0.00024931,2]
[340512346,1729398646618,-448.27384223,0.00024931,2]
[340512347,1729398646629,-500.0,0.00024931,2]
[340512348,1729398646639,-500.0,0.00024931,2]
[340512349,1729398646650,-500.0,0.00024931,2]
[340512350,1729398646661,-500.0,0.00024931,2]
[340512351,1729398646671,-500.0,0.00024931,2]
[340512352,1729398646680,-500.0,0.00024931,2]
[340512353,1729398646689,-500.0,0.00024931,2]
[340512354,1729398646699,-500.0,0.00024931,2]
[340512355,1729398646710,-500.0,0.00024931,2]
[340512356,1729398646719,-298.3244076,0.00024931,2]
[340512357,1729398646728,-502.66959919,0.00024931,2]
[340512358,1729398646737,-500.0,0.00024931,2]
[340512359,1729398646747,-41.72494171,0.00024931,2]
[340512360,1729398646784,-458.27505829,0.00024931,2]
[340512361,1729398646796,-500.0,0.00024931,2]
[340512362,1729398646805,-500.0,0.00024931,2]
[340512363,1729398646814,-500.0,0.00024931,2]
[340512364,1729398646823,-311.26837109,0.00024931,2]
[340512365,1729398646835,-188.73162891,0.00024931,2]
[340512366,1729398646844,-500.0,0.00024931,2]
[340512367,1729398646853,-218.76837109,0.00024931,2]
[340512368,1729398646865,-290.01331256,0.00024931,2]
[340512369,1729398646874,-500.0,0.00024931,2]
[340512370,1729398646883,-500.0,0.00024931,2]
[340512371,1729398646892,-500.0,0.00024931,2]
[340512372,1729398646901,-478.56017764,0.00024931,2]
[340512373,1729398646910,-500.0,0.00024931,2]
[340512374,1729398646919,-500.0,0.00024931,2]
[340512375,1729398646928,-345.9065098,0.00024931,2]
[340512376,1729398646942,-123.7803004,0.00024931,2]
[340512377,1729398646951,-431.2196996,0.00024931,2]
[340512378,1729398646963,-68.7803004,0.00024931,2]
[340512379,1729398646974,-500.0,0.00024931,2]
[340512380,1729398646984,-500.0,0.00024931,2]
[340512381,1729398646994,-500.0,0.00024931,2]
[340512382,1729398647004,-500.0,0.00024931,2]
[340512383,1729398647013,-500.0,0.00024931,2]
[340512384,1729398647023,-500.0,0.00024931,2]
[340512385,1729398647032,-476.41793749,0.00024931,2]
[340512386,1729398647041,-500.0,0.00024931,2]
[340512387,1729398647051,-500.0,0.00024931,2]
[340512388,1729398647060,-500.0,0.00024931,2]
[340512389,1729398647071,-336.09362919,0.00024931,2]
[340512390,1729398647080,-500.0,0.00024931,2]
[340512391,1729398647089,-500.0,0.00024931,2]
[340512392,1729398647098,-500.0,0.00024931,2]
[340512393,1729398647107,-514.52301187,0.00024931,2]
[340512394,1729398647116,-500.0,0.00024931,2]
[340512395,1729398647126,-500.0,0.00024931,2]
[340512396,1729398647135,-500.0,0.00024931,2]
[340512397,1729398647145,-468.24110771,0.00024931,2]
[340512398,1729398647154,-500.0,0.00024931,2]
[340512399,1729398647163,-153.1667062,0.00024931,2]
[340512400,1729398647185,-346.8332938,0.00024931,2]
[340512401,1729398647194,-512.03409908,0.00024931,2]
[340512402,1729398647204,-500.0,0.00024931,2]
[340512403,1729398647214,-500.0,0.00024931,2]
[340512404,1729398647224,-500.0,0.00024931,2]
[340512405,1729398647235,-511.24488679,0.00024931,2]
[340512406,1729398647245,-500.0,0.00024931,2]
[340512407,1729398647254,-500.0,0.00024931,2]
[340512408,1729398647264,-500.0,0.00024931,2]
[340512409,1729398647274,-525.25864729,0.00024931,2]
[340512410,1729398647285,-500.0,0.00024931,2]
[340512411,1729398647295,-515.07461228,0.00024931,2]
[340512412,1729398647304,-500.0,0.00024931,2]
[340512413,1729398647314,-500.0,0.00024931,2]
[340512414,1729398647324,-215.53714463,0.00024931,2]
[340512415,1729398647333,-464.2857913,0.00024931,2]
[340512416,1729398647343,-500.0,0.00024931,2]
[340512417,1729398647353,-500.0,0.00024931,2]
[340512418,1729398647362,-538.40920159,0.00024931,2]
[340512419,1729398647371,-500.0,0.00024931,2]
[340512420,1729398647380,-268.59709018,0.00024931,2]
[340512421,1729398647390,-500.0,0.00024931,2]
[340512422,1729398647399,-500.0,0.00024931,2]
[340512423,1729398647408,-482.70741042,0.00024931,2]
[340512424,1729398647418,-332.33649288,0.00024931,2]
[340512425,1729398647428,-507.04361641,0.00024931,2]
[340512426,1729398647437,-500.0,0.00024931,2]
[340512427,1729398647446,-281.37469832,0.00024931,2]
[340512428,1729398647455,-512.36952398,0.00024931,2]
[340512429,1729398647466,-500.0,0.00024931,2]
[340512430,1729398647476,-500.0,0.00024931,2]
[340512431,1729398647486,-504.60143705,0.00024931,2]
[340512432,1729398647498,-500.0,0.00024931,2]
[340512433,1729398647507,-500.0,0.00024931,2]
[340512434,1729398647516,-500.0,0.00024931,2]
[340512435,1729398647526,-500.0,0.00024931,2]
[340512436,1729398647536,-436.56351267,0.00024931,2]
[340512437,1729398647546,-504.86,0.00024931,2]
[340512438,1729398647556,-504.86,0.00024931,2]
[340512439,1729398647567,-504.86,0.00024931,2]
[340512440,1729398647577,-210.13657617,0.00024931,2]
[340512441,1729398647587,-504.86,0.00024931,2]
[340512442,1729398647596,-504.86,0.00024931,2]
[340512443,1729398647606,-504.86,0.00024931,2]
[340512444,1729398647615,-504.86,0.00024931,2]
[340512445,1729398647624,-504.86,0.00024931,2]
[340512446,1729398647634,-504.86,0.00024931,2]
[340512447,1729398647644,-504.86,0.00024931,2]
[340512448,1729398647655,-500.0,0.00024931,2]
[340512449,1729398647665,-504.86,0.00024931,2]
[340512450,1729398647675,-500.0,0.00024931,2]
[340512451,1729398647685,-504.86,0.00024931,2]
[340512452,1729398647694,-534.88954827,0.00024931,2]
[340512453,1729398647703,-500.0,0.00024931,2]
[340512454,1729398647712,-504.86,0.00024931,2]
[340512455,1729398647725,-387.6468878,0.00024931,2]
[340512456,1729398647734,-504.86,0.00024931,2]
[340512457,1729398647744,-500.0,0.00024931,15]
[340512458,1729398647753,-504.86,0.00024931,2]
[340512459,1729398647762,-500.0,0.00024931,15]
[340512460,1729398647771,-500.0,0.00024931,15]
[340512461,1729398647780,-500.0,0.00024931,15]
[340512462,1729398647790,-500.0,0.00024931,15]
[340512463,1729398647799,-504.99725051,0.00024931,2]
[340512464,1729398647808,-604.56953658,0.00024931,15]
[340512465,1729398647818,-500.0,0.00024931,2]
[340512466,1729398647827,-524.24044105,0.00024931,2]
[340512467,1729398647836,-500.0,0.00024931,2]
[340512468,1729398647846,-508.13637616,0.00024931,2]
[340512469,1729398647854,-500.0,0.00024931,2]
[340512470,1729398647863,-500.0,0.00024931,2]
[340512471,1729398647873,-500.0,0.00024931,2]
[340512472,1729398647967,-500.0,0.00024931,2]
[340512473,1729398647976,-536.97001418,0.00024931,2]
[340512474,1729398647985,-500.0,0.00024931,2]
[340512475,1729398647994,-500.0,0.00024931,2]
[340512476,1729398648003,-513.56909805,0.00024931,2]
[340512477,1729398648012,-520.49007783,0.00024931,2]
[340512478,1729398648021,-500.0,0.00024931,2]
[340512479,1729398648030,-500.0,0.00024931,2]
[340512480,1729398648039,-500.0,0.00024931,2]
[340512481,1729398648049,-500.0,0.00024931,2]
[340512482,1729398648058,-408.00893307,0.00024931,2]
[340512483,1729398648069,-544.03957733,0.00024931,2]
[340512484,1729398648079,-500.0,0.00024931,2]
[340512485,1729398648088,-500.0,0.00024931,2]
[340512486,1729398648097,-500.0,0.00024931,2]
[340512487,1729398648106,-500.0,0.00024931,2]
[340512488,1729398648117,-500.0,0.00024931,2]
[340512489,1729398648126,-500.0,0.00024931,2]
[340512490,1729398648135,-190.81212876,0.00024931,2]
[340512491,1729398648144,-500.0,0.00024931,2]
[340512492,1729398648153,-500.0,0.00024931,2]
[340512493,1729398648162,-500.0,0.00024931,2]